Cogmind - Beta 14 @@@ ROGUE MODE // 2024.08.31 @ 15:52:24 Player: BoomBlip Result: Self-destructed Performance ------------- Evolutions (2) 1000 Regions Visited (4) 800 Robots Destroyed (40) 200 Value Destroyed (967) 967 Prototype IDs (1) 20 Alien Tech Used (0) 0 Bonus (0) 0 TOTAL SCORE: 2987 Bonus ------- None Cogmind --------- Core Integrity 354/550 Matter 252/300 Energy 275/275 System Corruption 0% Temperature Cool (0) Movement Hovering (1080) Ox17 Location -8/Materials Parts ------- > --- POWER (1) -------- Deuterium Engine > --- PROPULSION (3) --- Gravmag System > --- UTILITY (5) ------ Cargo Storage Unit Light Armor Plating Medium Armor Plating > --- WEAPON (2) ------- Light Assault Rifle Flail > --- INVENTORY (30) --- Ion Engine Aluminum Leg Airjet Gravmag System Beam Rifle Light Assault Rifle Light Assault Rifle Faulty Advanced EMP Blaster Peak State ------------ > --- POWER ------------ Deuterium Engine > --- PROPULSION ------- Gravmag System Gravmag System Gravmag System > --- UTILITY ---------- Cargo Storage Unit Light Armor Plating Medium Armor Plating Insulated Plating > --- WEAPON ----------- Light Assault Rifle Flail > --- INVENTORY -------- Ion Engine Aluminum Leg Gravmag System Beam Rifle Light Assault Rifle Light Assault Rifle Advanced EMP Blaster [Rating: 27] Favorites ----------- Power Improved Ion Engine Engine Improved Ion Engine Power Core Light Nuclear Core Propulsion Light Treads Treads Light Treads Leg Aluminum Leg Wheel Wheel Hover Unit Gravmag System Utility Medium Armor Plating Device Heat Sink Storage Small Storage Unit Protection Medium Armor Plating Weapon Light Assault Rifle Energy Gun Beam Rifle Ballistic Gun Light Assault Rifle Launcher Advanced EMP Blaster Impact Weapon Flail Build | -11 -10 -9 -9 -8 ------- Run | Yrd Mat Mat Min Mat Slots Evolved 4 | . . 2 . 2 Power . | . . . . . Propulsion 1 | . . 1 . . Utility 3 | . . 1 . 2 Weapon . | . . . . . Parts Attached 37 | . 7 11 2 17 Power 4 | . . 1 1 2 Engine 3 | . . 1 . 2 Core 1 | . . . 1 . Reactor . | . . . . . Propulsion 10 | . 2 5 . 3 Treads 5 | . . 5 . . Leg . | . . . . . Wheel 2 | . 2 . . . Hover 3 | . . . . 3 Flight . | . . . . . Utility 11 | . 2 2 1 6 Device 4 | . 2 1 1 . Storage 1 | . . . . 1 Processor . | . . . . . Hackware . | . . . . . Protection 6 | . . 1 . 5 Artifact . | . . . . . Weapon 12 | . 3 3 . 6 Energy Gun 4 | . 2 1 . 1 Energy Cannon . | . . . . . Ballistic Gun 5 | . 1 2 . 2 Ballistic Cannon . | . . . . . Launcher 2 | . . . . 2 Special Weapon . | . . . . . Impact Weapon 1 | . . . . 1 Slashing Weapon . | . . . . . Piercing Weapon . | . . . . . Special Melee Weapon . | . . . . . Unidentified Prototypes 1 | . . . . 1 Parts Lost 10 | . 1 . . 9 Power 1 | . . . . 1 Propulsion 4 | . 1 . . 3 Utility 4 | . . . . 4 Weapon 1 | . . . . 1 Highest Loss Streak 3 | . 1 . . 3 To Critical Strikes . | . . . . . Average Slot Usage (%) 88 | . 91 97 100 78 Engine 7 | . 14 11 7 5 Core 2 | . . . 3 3 Treads 20 | . . 26 33 16 Leg 2 | . 23 . . . Wheel 1 | . 4 4 . . Hover 2 | . . . . 5 Device 7 | . 6 12 11 4 Storage 10 | . 14 11 11 9 Protection 12 | . . 9 11 17 Energy Gun 7 | . 14 11 11 3 Ballistic Gun 10 | . 14 11 11 9 Launcher 1 | . . . . 3 Peak Build Rating 27 | . 7 13 14 27 Average Rating 14 | . 6 11 13 17 On Entrance 9 | 6 6 7 12 14 Naked Turns . | . . . . . Heaviest Build 166 | 11 12 25 25 166 Greatest Support 60 | 20 26 60 60 60 Greatest Overweight (x) 18 | . 1 . . 18 Average Overweight (x) . | . . . . 2 Largest Inventory Capacity 30 | . 8 8 8 30 Average Capacity 15 | . 8 8 8 24 Most Carried 8 | . 8 8 8 8 Average Carried 7 | . 6 7 7 6 Final Capacity 30 | 8 8 8 8 30 Final Carried 8 | 6 8 7 8 8 Class Distribution -------------------- 51% | Scavenger-Mutant 36% | Hauler-Mutant 12% | Mutant Dominant Class ---------------- Mutant | -10/Materials Scavenger-Mutant | -9/Materials Scavenger-Mutant | -9/Mines Hauler-Mutant | -8/Materials Resources | -11 -10 -9 -9 -8 ----------- Run | Yrd Mat Mat Min Mat Matter Collected 677 | 194 54 149 97 183 Remotely . | . . . . . Salvage Created 1410 | . 175 309 256 670 Parts 75 | . 11 20 17 27 Haulers Intercepted . | . . . . . Recyclers Shooed 2 | . 1 . . 1 Parts Field Recycled . | . . . . . Retrieved Matter . | . . . . . Parts Self-Destructed . | . . . . . Prevented . | . . . . . Kills | -11 -10 -9 -9 -8 ------- Run | Yrd Mat Mat Min Mat Combat Hostiles Destroyed 31 | . 6 7 7 11 Guns 25 | . 6 7 6 6 AOE 5 | . . . . 5 Classes Destroyed 8 | . 2 2 . 4 Worker 4 | . . . . 4 Builder 1 | . . . . 1 Recycler 3 | . . 1 . 2 Watcher 1 | . . . . 1 Swarmer 13 | . 3 3 2 5 Grunt 13 | . 3 2 5 3 Sentry 4 | . . 2 . 2 Hunter 1 | . . . . 1 Best Kill Streak 8 | . 4 4 2 8 Combat Bots Only 4 | . 4 3 2 4 Max Kills in Single Turn 3 | . 1 1 2 3 Gunslinging 1 | . . . 1 . Exploded 2 | . . . . 2 Melee . | . . . . . Uniques/NPCs Destroyed . | . . . . . Combat | -11 -10 -9 -9 -8 -------- Run | Yrd Mat Mat Min Mat Hostile Shots Fired 203 | . 34 34 32 103 Missed 55 | . 7 9 12 27 Damage Taken 2304 | . 260 263 272 1509 Core 318 | . 59 18 45 196 Absorbed by Shields . | . . . . . Ignored by Resistances 10 | . . . . 10 Core Remaining (%) 86 | 100 76 . 84 . Volleys Fired 117 | . 19 23 19 56 Largest 2 | . 2 2 2 2 Hottest 76 | . 70 70 76 76 Shots Fired 227 | . 38 46 38 105 Gun 217 | . 38 46 38 95 Cannon . | . . . . . Launcher 10 | . . . . 10 Special . | . . . . . Kinetic 117 | . 19 23 19 56 Thermal 100 | . 19 23 19 39 Explosive . | . . . . . Electromagnetic 10 | . . . . 10 Robot Hit Streak 14 | . 4 6 14 11 Robot Miss Streak 4 | . 3 3 2 4 Penetration Max . | . . . . . Secondary Targets 3 | . 1 . 1 1 Max Gunslinging Chain 1 | . 1 . 1 1 Shots Hit Robots 146 | . 24 25 26 71 Core Hits 73 | . 11 13 12 37 Critical Kills 2 | . . 2 . . Critical Parts Destroyed 1 | . . . . 1 Critical Strikes 8 | . . 3 3 2 Burn 5 | . . 1 3 1 Destroy 3 | . . 2 . 1 Melee Attacks . | . . . . . Impact . | . . . . . Slashing . | . . . . . Piercing . | . . . . . Sneak Attacks . | . . . . . Combat Hostiles . | . . . . . Follow-up Attacks . | . . . . . Damage Inflicted 2235 | . 254 261 366 1354 Guns 1614 | . 254 257 366 737 Cannons . | . . . . . Explosions 617 | . . . . 617 Melee . | . . . . . Ramming 4 | . . 4 . . Kinetic 673 | . 110 96 164 303 Thermal 941 | . 144 161 202 434 Explosive 200 | . . . . 200 Electromagnetic 417 | . . . . 417 Impact . | . . . . . Slashing . | . . . . . Piercing . | . . . . . Highest Corruption . | . . . . . Average Corruption . | . . . . . Corruption Purged . | . . . . . Corruption Blocked . | . . . . . Overload Shots . | . . . . . Overflow Damage 14 | . . . . 14 Projectiles . | . . . . . Explosions 14 | . . . . 14 Melee . | . . . . . Knockbacks . | . . . . . Impact . | . . . . . Kinetic . | . . . . . Secondary . | . . . . . Self-Inflicted Damage 195 | . . . . 195 Shots 7 | . . . . 7 Rammed 1 | . . 1 . . Targets Rammed 1 | . . 1 . . Kicked . | . . . . . Crushed . | . . . . . Highest Temperature 146 | . 146 30 34 120 Average Temperature 35 | . 55 12 17 38 Received Heat Transfer 678 | . 96 69 180 333 Siege Activations . | . . . . . Robots Corrupted . | . . . . . Combat Hostiles . | . . . . . Parts Fried 3 | . . . . 3 Impact Corruptions . | . . . . . Robots Melted 1 | . . . 1 . Combat Hostiles 1 | . . . 1 . Parts Melted 6 | . . 1 3 2 Heat Transferred 2851 | . 372 555 740 1184 Parts Sabotaged . | . . . . . Parts Stolen . | . . . . . Parts Stripped . | . . . . . Power Chain Reactions 5 | . . . . 5 Alert | -11 -10 -9 -9 -8 ------- Run | Yrd Mat Mat Min Mat Peak Influence 390 | . 204 390 356 194 Initial 151 | . . 85 151 60 Average 142 | . 81 265 258 54 Maximum Alert Level 1 | . 1 1 1 . Low Security (%) 67 | . 93 29 17 100 Level 1 32 | . 6 70 82 . Level 2 . | . . . . . Level 3 . | . . . . . Level 4 . | . . . . . Level 5 . | . . . . . High Security . | . . . . . Max Security . | . . . . . Squads Dispatched 6 | . 2 3 . 1 Investigation 1 | . 1 . . . Extermination . | . . . . . Reinforcement 4 | . 1 3 . . Assault . | . . . . . Garrison 1 | . . . . 1 Intercept . | . . . . . Searches Triggered . | . . . . . Construction Impeded . | . . . . . Haulers Reinforced . | . . . . . Active Scanning Responses . | . . . . . Cargo Convoy Interrupts . | . . . . . Stealth | -11 -10 -9 -9 -8 --------- Run | Yrd Mat Mat Min Mat Distress Signals 7 | . 2 2 . 3 Communications Jammed . | . . . . . Distress Signals . | . . . . . Times Spotted 57 | . 11 14 9 23 Peak Tracking Total 6 | . 4 4 4 6 Tactical Retreats 4 | . 2 . 2 . Traps | -11 -10 -9 -9 -8 ------- Run | Yrd Mat Mat Min Mat Traps Triggered 1 | . 1 . . . Indirectly . | . . . . . Trap Hack Attempts . | . . . . . Triggered . | . . . . . Disarmed . | . . . . . Reprogrammed . | . . . . . Reused . | . . . . . Traps Extracted . | . . . . . Installed . | . . . . . Triggered . | . . . . . Machines | -11 -10 -9 -9 -8 ---------- Run | Yrd Mat Mat Min Mat Machines Disabled 4 | . . . . 4 Max in Single Turn 2 | . . . . 2 Machines Repaired . | . . . . . Machines Dismantled . | . . . . . Machines Sabotaged . | . . . . . Overloaded Fab Kills . | . . . . . Hacking | -11 -10 -9 -9 -8 --------- Run | Yrd Mat Mat Min Mat Machines Accessed 2 | . 1 . . 1 Terminals 2 | . 1 . . 1 Fabricators . | . . . . . Repair Stations . | . . . . . Recycling Units . | . . . . . Scanalyzers . | . . . . . Garrison Access . | . . . . . Total Hacks 6 | . 3 . . 3 Successful 3 | . 1 . . 2 Failed 3 | . 2 . . 1 Catastrophic . | . . . . . Database Lockouts . | . . . . . Manual 7 | . 4 . . 3 Terminals 6 | . 3 . . 3 Fabricators . | . . . . . Repair Stations . | . . . . . Recycling Units . | . . . . . Scanalyzers . | . . . . . Garrison Access . | . . . . . Terminal Hacks 1 | . . . . 1 Unreport Threat 1 | . . . . 1 Fabricator Hacks . | . . . . . Repair Station Hacks . | . . . . . Recycling Unit Hacks . | . . . . . Scanalyzer . | . . . . . Garrison Access Hacks . | . . . . . Unauthorized Hacks 2 | . 1 . . 1 Terminals 2 | . 1 . . 1 Assimilate 1 | . . . . 1 Skim 1 | . 1 . . . Fabricators . | . . . . . Repair Stations . | . . . . . Recycling Units . | . . . . . Scanalyzers . | . . . . . Garrison Access . | . . . . . Data Cores Recovered . | . . . . . Used . | . . . . . Hacking Detections 2 | . 1 . . 1 Full Trace Events . | . . . . . Feedback Events . | . . . . . Feedback Blocked . | . . . . . Robot Schematics Acquired . | . . . . . Robots Built . | . . . . . Authchips . | . . . . . Time . | . . . . . Total Robot Build Rating . | . . . . . Part Schematics Acquired . | . . . . . Parts Built . | . . . . . Authchips . | . . . . . Time . | . . . . . Total Part Build Rating . | . . . . . Parts Repaired . | . . . . . Time . | . . . . . Parts Recycled . | . . . . . Recycled Matter . | . . . . . Retrieved Matter . | . . . . . Retrieved Components . | . . . . . Parts Scanalyzed . | . . . . . Part Schematics Acquired . | . . . . . Parts Damaged . | . . . . . Bothacking | -11 -10 -9 -9 -8 ------------ Run | Yrd Mat Mat Min Mat Used RIF Installer . | . . . . . Robots Hacked . | . . . . . Non-combat . | . . . . . Combat . | . . . . . Robot Hacks Applied . | . . . . . Relay Couplers Released . | . . . . . Fabnet Peak Effective % . | . . . . . Robots Rewired . | . . . . . Allies Hacked . | . . . . . Hacks Repelled . | . . . . . Allies | -11 -10 -9 -9 -8 -------- Run | Yrd Mat Mat Min Mat Total Allies 1 | . . . 1 . Largest Group 1 | . . . 1 1 Highest-Rated Group 31 | . . . 31 31 Highest-Rated Ally 31 | . . . 31 31 Total Orders . | . . . . . Ally Attacks 6 | . . . . 6 Total Damage 65 | . . . . 65 Kills . | . . . . . Allies Corrupted . | . . . . . Allies Melted . | . . . . . Intel | -11 -10 -9 -9 -8 ------- Run | Yrd Mat Mat Min Mat Robot Analysis Total . | . . . . . Derelict Logs Recovered 1 | . . . 1 . Drone Launches . | . . . . . Drone Recoveries . | . . . . . Exploration | -11 -10 -9 -9 -8 ------------- Run | Yrd Mat Mat Min Mat Turns Passed 1831 | . 180 308 447 896 Spaces Moved 707 | 1 90 151 229 236 Core . | . . . . . Treads 538 | . . 117 229 192 Legs 69 | 1 68 . . . Wheels 56 | . 22 34 . . Hover 44 | . . . . 44 Flight . | . . . . . Fastest Speed 90 | 120 90 90 160 160 Average Speed 198 | 120 113 144 160 303 Slowest Speed 1140 | 120 190 160 160 1140 Overloaded Moves . | . . . . . Propulsion Burnouts . | . . . . . Robots Hopped . | . . . . . Cave-ins Triggered . | . . . . . Exploration Rate (%) 24 | 2 19 18 55 27 Regions Visited 4 Branch Regions 1 Pre-discovered Areas . | . . . . . Known Exits Taken . | . . . . . Unknown Exits Taken 4 | 1 1 1 1 . Scrap Searched . | . . . . . Spaces Dug . | . . . . . Terrain Destroyed 36 | . . . . 36 Melee . | . . . . . Projectile . | . . . . . AOE 36 | . . . . 36 Terrain Rammed . | . . . . . Walls Destroyed . | . . . . . Machines Disabled . | . . . . . Actions | -11 -10 -9 -9 -8 --------- Run | Yrd Mat Mat Min Mat Total 928 | . 131 203 276 318 Wait 40 | . 15 5 20 . Move 703 | . 89 150 228 236 Hop . | . . . . . Pick Up 11 | . . 4 3 4 Fast Attach 10 | . 1 2 . 7 Attach 8 | . 1 3 . 4 Detach . | . . . . . Swap 19 | . 5 6 2 6 Drop 19 | . 1 9 4 5 Fire 117 | . 19 23 19 56 Melee . | . . . . . Ram . | . . . . . Kick . | . . . . . Crush 1 | . . 1 . . Escape Stasis . | . . . . . Rewire . | . . . . . Trap . | . . . . . Miscellaneous . | . . . . . Route ------- -11/Scrapyard -10/Materials -9/Materials -9/Mines -8/Materials History --------- Turn | Location | Event 1 | -11/Scrapyard | Discovered new exit (range 0) 1 | -11/Scrapyard | Entered Materials 162 | -10/Materials | Discovered new exit (range 10) 181 | -10/Materials | Entered another Materials area 181 | -9/Materials | Evolved 2 slots: Propulsion x1, Utility x1 468 | -9/Materials | Discovered new exit (range 9) 489 | -9/Materials | Entered Mines 534 | -9/Mines | Build established: Scavenger-Mutant 867 | -9/Mines | Received a Mining Laser from a helpful Derelict 922 | -9/Mines | Discovered new exit (range 6) 936 | -9/Mines | Entered Materials 936 | -8/Materials | Accompanied by 1 ally 936 | -8/Materials | Evolved 2 slots: Utility x2 1319 | -8/Materials | Garrison activated, responded to threat 1468 | -8/Materials | Build established: Hauler-Mutant 1832 | -8/Materials | Self-destructed Last Messages --------------- 01643_ Adv. EMP Blaster destroyed. 01646_ Acquired Gravmag System. 01650_ Y-45 Defender destroyed. 01650_ K-01 Serf collects debris. 01657_ Acquired Gravmag System. 01658_ K-01 Serf collects debris. 01662_ Acquired Gravmag System. 01678_ K-01 Serf cleans the Terminal. 01691_ Acquired Lgt. Armor Plating. 01693_ Acquired 50 matter. 01709_ R-06 Scavenger collects Lgt. Treads. 01713_ R-06 Scavenger collects Beam Rifle. 01721_ R-06 Scavenger collects Lgt. Treads. 01759_ Acquired Flail. 01789_ Acquired Airjet. 01819_ Slug penetrates K-01 Serf. 01819_ K-01 Serf suffers critical hit (Blast). 01819_ K-01 Serf destroyed. 01821_ Insulated Plating destroyed. 01825_ Gravmag System destroyed. Map ----- +----------------------------------------------------+ | | | | | | | | | | | | | ?????????????????????????????????????????????????? | | ?????????????????????????????????????????????????? | | ?????????????????????????????????????????????????? | | ?????????????????????????????????????????????????? | | ?????????????????????????????????????????????????? | | ?????????????????????????????????????????????????? | | ?????????????????????????????????????????????????? | | ?????????????????????????????????????????????????? | | ?????????????????????????????????????????????????? | | ??????????????????######?????????????????????????? | | ??????????????????# #?????????????????????????? | | ??????????????????# #?????????????????????????? | | ?????##+##????????# #?????????????????????????? | | ?????# ????????# %#?????????????????????????? | | ?????# #????????# !#?????????????????????????? | | ?????# #????????# #?????????????????????????? | | ?????+ #????????# #?????????????????????????? | | ?????# #????????# #?????????????????????????? | | ?????# ######+### ########??????????????????? | | ?????# ###+###@% ###????????????????? | | ###### ] ?????????? | | """ % % % % H ????????? | | ###+## """ ! % r % u k ?????????? | | ## """ ####### ####### ?????????? | | " #" #?????###+###??????????????????? | | "G" #T #??????????????????????????????? | | " " #" #??????????????????????????????? | | ## #??????????????????????????????? | | ## #??????????????????????????????? | | ####### "T" #??????????????????????????????? | | """ #??????????????????????????????? | | ##### ########??????????????????????????????? | | #??# = #?????????????????????????????????????? | | #??#!! =!!#?????????????????????????????????????? | | #??#!! !!#?????????????????????????????????????? | | ##??########?????????????????????????????????????? | | #???????????????????????????????????????????????? | | #???????????????????????????????????????????????? | | #???????????????????????????????????????????????? | | ##???????????????????????????????????????????????? | | #????????????????????????????????????????????????? | | ?????????????????????????????????????????????????? | | #????????????????????????????????????????????????? | | #????????????????????????????????????????????????? | +----------------------------------------------------+ Best States ------------- Heat Dissipation 48 Energy Generation 14 Energy Capacity 275 Matter Stores 300 Matter Capacity 300 Sight Range 16 Terrain Scan Density 10 Armor Coverage 525 Resistance: EM 15 Evasion (%) 55 Recoil Reduction 3 Item Schematics ----------------- None Robot Schematics ------------------ None Fabricated ------------ Nothing Alien Tech Used ----------------- None Achievements -------------- None Challenges ------------ None Game ------ Seed RagnarokHeavyProcessor Manual? 0 Play Time 00:16:18 Cumulative 105.5 hours Start 2024.08.30 @ 15:17:51 End 2024.08.31 @ 15:52:24 Sessions 1 Manual Loads 0 Difficulty Rogue Special Mode None Game No. 156 Rogue 144 Adventurer 10 Explorer 2 Win Type - Total 1 Types 1/0/0/0/0/0/0/0/0 Lore% 19 Gallery% 54 Achievement% 42 Wizard Run 0 Options --------- Layout 0 ASCII 0 Keyboard 0 Movement Arrows Keybinds 0 Fullscreen 1 Font 36/Smallcaps Map View 76x50 Zoom Use 0% Tactical HUD 1 Map Filters NONE Filters NONE Steam 1 RUN: 5fb90104-3960-42f5-a3f2-292d34c71f23